BODY,BODY NAME,DATE,TRANSACTION NUMBER, AMOUNT ,SUPPLIER NAME,SUPPLIER ID,EXPENSE AREA,EXPENSE TYPE,EXPENSE CODE
http://statistics.data.gov.uk/id/local-authority/12UE,Huntingdonshire District Council,19/01/2012,97188,2334,King Street Housing Society,CR409301,Accommodation For Homeless,Management Charge,733
http://statistics.data.gov.uk/id/local-authority/12UE,Huntingdonshire District Council,12/01/2012,96589,1862,King Street Housing Society,CR409301,Accommodation For Homeless,Management Charge,733
http://statistics.data.gov.uk/id/local-authority/12UE,Huntingdonshire District Council,26/01/2012,97569,1998,Elephant & Castle Freehouse & Motel,CR401969,Accommodation For Homeless,Bed & Breakfast Payment,818
http://statistics.data.gov.uk/id/local-authority/12UE,Huntingdonshire District Council,12/01/2012,96236,1188,Elephant & Castle Freehouse & Motel,CR401969,Accommodation For Homeless,Bed & Breakfast Payment,818
http://statistics.data.gov.uk/id/local-authority/12UE,Huntingdonshire District Council,12/01/2012,96699,1188,Elephant & Castle Freehouse & Motel,CR401969,Accommodation For Homeless,Bed & Breakfast Payment,818
http://statistics.data.gov.uk/id/local-authority/12UE,Huntingdonshire District Council,19/01/2012,97197,1188,Elephant & Castle Freehouse & Motel,CR401969,Accommodation For Homeless,Bed & Breakfast Payment,818
http://statistics.data.gov.uk/id/local-authority/12UE,Huntingdonshire District Council,12/01/2012,96237,1134,Elephant & Castle Freehouse & Motel,CR401969,Accommodation For Homeless,Bed & Breakfast Payment,818
http://statistics.data.gov.uk/id/local-authority/12UE,Huntingdonshire District Council,16/01/2012,97112,1413,Mr Ian Axelson T/A The George Hotel,CR135380,Accommodation For Homeless,Bed & Breakfast Payment,818
http://statistics.data.gov.uk/id/local-authority/12UE,Huntingdonshire District Council,16/01/2012,96844,-1413,Mr Ian Axelson T/A The George Hotel,CR135380,Accommodation For Homeless,Bed & Breakfast Payment,818
http://statistics.data.gov.uk/id/local-authority/12UE,Huntingdonshire District Council,26/01/2012,97537,1921,Opus International Consultants,CR479831,Building Control Applications,Consultants,711
http://statistics.data.gov.uk/id/local-authority/12UE,Huntingdonshire District Council,26/01/2012,97481,2070,Peter Lane Partners,CR453849,Buildings - Gf,Cap Rec Expenses - Other,59
http://statistics.data.gov.uk/id/local-authority/12UE,Huntingdonshire District Council,12/01/2012,96120,1038,Beebys Limited,CR415822,Bus Stations,Building Cleaning Internal,440
http://statistics.data.gov.uk/id/local-authority/12UE,Huntingdonshire District Council,19/01/2012,96614,1620,Jba Construction & Management Services,CR416716,Bus Stations Capital,Consultants,711
http://statistics.data.gov.uk/id/local-authority/12UE,Huntingdonshire District Council,26/01/2012,97482,4400,Nwes Property Services Ltd,CR479264,Business & Enterprise Support,Training - Professional,130
http://statistics.data.gov.uk/id/local-authority/12UE,Huntingdonshire District Council,19/01/2012,97145,6800,St Johns Innovation Centre,CR453835,Business & Enterprise Support,Training - Professional,130
http://statistics.data.gov.uk/id/local-authority/12UE,Huntingdonshire District Council,19/01/2012,97147,3400,St Johns Innovation Centre,CR453835,Business & Enterprise Support,Training - Professional,130
http://statistics.data.gov.uk/id/local-authority/12UE,Huntingdonshire District Council,19/01/2012,97139,4145,Icon,CR453800,Business & Enterprise Support,Promotional Items,569
http://statistics.data.gov.uk/id/local-authority/12UE,Huntingdonshire District Council,26/01/2012,97052,750,Association Of Town Centre Management,CR410171,Business & Enterprise Support,Corporate Subscriptions,754
http://statistics.data.gov.uk/id/local-authority/12UE,Huntingdonshire District Council,05/01/2012,95290,17383,Quadrant Security Group,CR027775,C C T V,Equipment Maintenance,511
http://statistics.data.gov.uk/id/local-authority/12UE,Huntingdonshire District Council,05/01/2012,93236,16847,Quadrant Security Group,CR027775,C C T V,Equipment Maintenance,511
http://statistics.data.gov.uk/id/local-authority/12UE,Huntingdonshire District Council,05/01/2012,93235,2808,Quadrant Security Group,CR027775,C C T V,Equipment Maintenance,511
http://statistics.data.gov.uk/id/local-authority/12UE,Huntingdonshire District Council,05/01/2012,93238,-3997,Quadrant Security Group,CR027775,C C T V,Equipment Maintenance,511
http://statistics.data.gov.uk/id/local-authority/12UE,Huntingdonshire District Council,05/01/2012,93239,-3997,Quadrant Security Group,CR027775,C C T V,Equipment Maintenance,511
http://statistics.data.gov.uk/id/local-authority/12UE,Huntingdonshire District Council,05/01/2012,93241,-3997,Quadrant Security Group,CR027775,C C T V,Equipment Maintenance,511
http://statistics.data.gov.uk/id/local-authority/12UE,Huntingdonshire District Council,05/01/2012,93242,-3997,Quadrant Security Group,CR027775,C C T V,Equipment Maintenance,511
http://statistics.data.gov.uk/id/local-authority/12UE,Huntingdonshire District Council,05/01/2012,93243,-3997,Quadrant Security Group,CR027775,C C T V,Equipment Maintenance,511
http://statistics.data.gov.uk/id/local-authority/12UE,Huntingdonshire District Council,05/01/2012,93244,-3997,Quadrant Security Group,CR027775,C C T V,Equipment Maintenance,511
http://statistics.data.gov.uk/id/local-authority/12UE,Huntingdonshire District Council,26/01/2012,96142,812,Frontline,CR480881,Call Centre,Training - Other,136
http://statistics.data.gov.uk/id/local-authority/12UE,Huntingdonshire District Council,19/01/2012,95845,6248,Cambridgeshire County Council,CR477465,Call Centre,Service Charges,412
http://statistics.data.gov.uk/id/local-authority/12UE,Huntingdonshire District Council,26/01/2012,96144,111,Cambridgeshire County Council,CR477465,Call Centre,Vending Materials,560
http://statistics.data.gov.uk/id/local-authority/12UE,Huntingdonshire District Council,26/01/2012,96144,23933,Cambridgeshire County Council,CR477465,Call Centre,I C T Services,731
http://statistics.data.gov.uk/id/local-authority/12UE,Huntingdonshire District Council,26/01/2012,96783,2281,J Breheny Contractors Ltd,CR000314,Car Park Assets,Sitework,359
http://statistics.data.gov.uk/id/local-authority/12UE,Huntingdonshire District Council,26/01/2012,96777,1764,J Breheny Contractors Ltd,CR000314,Car Park Assets,Sitework,359
http://statistics.data.gov.uk/id/local-authority/12UE,Huntingdonshire District Council,26/01/2012,96795,563,J Breheny Contractors Ltd,CR000314,Car Park Assets,Sitework,359
http://statistics.data.gov.uk/id/local-authority/12UE,Huntingdonshire District Council,26/01/2012,96241,694,Mhb Services,CR417269,Car Park Assets,Sitework,359
http://statistics.data.gov.uk/id/local-authority/12UE,Huntingdonshire District Council,12/01/2012,96520,744,Swalec,CR407130,Car Park Management,Electricity,420
http://statistics.data.gov.uk/id/local-authority/12UE,Huntingdonshire District Council,05/01/2012,96252,570,Swalec,CR407130,Car Park Management,Electricity,420
http://statistics.data.gov.uk/id/local-authority/12UE,Huntingdonshire District Council,12/01/2012,96816,3882,Cale Briparc Ltd,CR401137,Car Park Management,Car Park Machines,522
http://statistics.data.gov.uk/id/local-authority/12UE,Huntingdonshire District Council,12/01/2012,95413,4717,G4s Cashservices Uk Ltd,CR407133,Car Park Management,Cash Collection,702
http://statistics.data.gov.uk/id/local-authority/12UE,Huntingdonshire District Council,26/01/2012,97207,4717,G4s Cashservices Uk Ltd,CR407133,Car Park Management,Cash Collection,702
http://statistics.data.gov.uk/id/local-authority/12UE,Huntingdonshire District Council,12/01/2012,527368,680,Huntingdon Town Council,CR103190,Car Park Management,Subcontractors,777
http://statistics.data.gov.uk/id/local-authority/12UE,Huntingdonshire District Council,26/01/2012,97114,574,British Telecommunications Plc,CR027071,Car Parks Capital,Sitework,359
http://statistics.data.gov.uk/id/local-authority/12UE,Huntingdonshire District Council,19/01/2012,96855,16768,John Henry & Sons,CR031967,Car Parks Capital,Sitework,359
http://statistics.data.gov.uk/id/local-authority/12UE,Huntingdonshire District Council,26/01/2012,97540,8087,Deloitte,CR416667,Car Parks Capital,Consultants,711
http://statistics.data.gov.uk/id/local-authority/12UE,Huntingdonshire District Council,05/01/2012,96151,896,Angleshades Consulting Ltd,CR482596,Central & Democratic Serv Mu,Hired Staff,100
http://statistics.data.gov.uk/id/local-authority/12UE,Huntingdonshire District Council,19/01/2012,96161,7392,Thomson Reuters,CR412314,Central & Democratic Serv Mu,Books & Publications,250
http://statistics.data.gov.uk/id/local-authority/12UE,Huntingdonshire District Council,26/01/2012,97578,3541,Locata Housing Services Ltd,CR478274,Choice Based Lettings (Ex Chr),Postage,231
http://statistics.data.gov.uk/id/local-authority/12UE,Huntingdonshire District Council,26/01/2012,97574,4714,Locata Housing Services Ltd,CR478274,Choice Based Lettings (Ex Chr),Telephone Charges,240
http://statistics.data.gov.uk/id/local-authority/12UE,Huntingdonshire District Council,26/01/2012,97575,600,Locata Housing Services Ltd,CR478274,Choice Based Lettings (Ex Chr),Management Charge,733
http://statistics.data.gov.uk/id/local-authority/12UE,Huntingdonshire District Council,26/01/2012,97043,1024,Lex Autolease Ltd,CR410751,Commerce & Tech Director Mus,Vehicle Operating Lease,601
http://statistics.data.gov.uk/id/local-authority/12UE,Huntingdonshire District Council,26/01/2012,96546,24,Virgin Media Business,CR033120,Community Projects,Telephone Charges,240
http://statistics.data.gov.uk/id/local-authority/12UE,Huntingdonshire District Council,26/01/2012,96546,321,Virgin Media Business,CR033120,Community Projects,I T Line Rental,248
http://statistics.data.gov.uk/id/local-authority/12UE,Huntingdonshire District Council,12/01/2012,96605,704,Cambridgeshire County Council,CR017440,Community Projects,Rent,410
http://statistics.data.gov.uk/id/local-authority/12UE,Huntingdonshire District Council,19/01/2012,97026,246,Peter Lockyer Advertising Ltd,CR033030,Community Services M Us,Recruitment - Advertising,120
http://statistics.data.gov.uk/id/local-authority/12UE,Huntingdonshire District Council,19/01/2012,97187,760,Melville Data Services,CR453839,Community Services M Us,Conferences,137
http://statistics.data.gov.uk/id/local-authority/12UE,Huntingdonshire District Council,19/01/2012,96125,661,Newlyn Plc,CR409114,Council Tax,Bailiffs,703
http://statistics.data.gov.uk/id/local-authority/12UE,Huntingdonshire District Council,05/01/2012,95167,588,Newlyn Plc,CR409114,Council Tax,Bailiffs,703
http://statistics.data.gov.uk/id/local-authority/12UE,Huntingdonshire District Council,05/01/2012,95410,623,Rossendales Ltd,CR479503,Council Tax,Bailiffs,703
http://statistics.data.gov.uk/id/local-authority/12UE,Huntingdonshire District Council,19/01/2012,97026,493,Peter Lockyer Advertising Ltd,CR033030,Customer Service Centres,Recruitment - Advertising,120
http://statistics.data.gov.uk/id/local-authority/12UE,Huntingdonshire District Council,26/01/2012,96546,11,Virgin Media Business,CR033120,Customer Service Centres,Telephone Charges,240
http://statistics.data.gov.uk/id/local-authority/12UE,Huntingdonshire District Council,26/01/2012,96546,321,Virgin Media Business,CR033120,Customer Service Centres,I T Line Rental,248
http://statistics.data.gov.uk/id/local-authority/12UE,Huntingdonshire District Council,25/01/2012,97110,2497,Dms Home Improvements & Electrical,CR479202,Customer Service Centres,Gen Building Mtce - Responsive,303
http://statistics.data.gov.uk/id/local-authority/12UE,Huntingdonshire District Council,26/01/2012,97743,2497,Dms Home Improvements & Electrical,CR479202,Customer Service Centres,Gen Building Mtce - Responsive,303
http://statistics.data.gov.uk/id/local-authority/12UE,Huntingdonshire District Council,25/01/2012,97696,-2497,Dms Home Improvements & Electrical,CR479202,Customer Service Centres,Gen Building Mtce - Responsive,303
http://statistics.data.gov.uk/id/local-authority/12UE,Huntingdonshire District Council,12/01/2012,95416,372,G4s Cashservices Uk Ltd,CR407133,Customer Service Centres,Cash Collection,702
http://statistics.data.gov.uk/id/local-authority/12UE,Huntingdonshire District Council,26/01/2012,97204,372,G4s Cashservices Uk Ltd,CR407133,Customer Service Centres,Cash Collection,702
http://statistics.data.gov.uk/id/local-authority/12UE,Huntingdonshire District Council,26/01/2012,96730,22859,Drivers  Jonas Deloitte,CR400573,Dc Application Processing,Consultants,711
http://statistics.data.gov.uk/id/local-authority/12UE,Huntingdonshire District Council,12/01/2012,96368,1219,Royal Mail,CR027083,Document Centre,Postage,231
http://statistics.data.gov.uk/id/local-authority/12UE,Huntingdonshire District Council,12/01/2012,95728,1073,T N T Post Midlands Ltd,CR479965,Document Centre,Postage,231
http://statistics.data.gov.uk/id/local-authority/12UE,Huntingdonshire District Council,05/01/2012,95627,885,T N T Post Midlands Ltd,CR479965,Document Centre,Postage,231
http://statistics.data.gov.uk/id/local-authority/12UE,Huntingdonshire District Council,19/01/2012,96515,972,T N T Post Midlands Ltd,CR479965,Document Centre,Postage,231
http://statistics.data.gov.uk/id/local-authority/12UE,Huntingdonshire District Council,12/01/2012,95623,577,Xerox Office Supplies,CR481184,Document Centre,Paper,562
http://statistics.data.gov.uk/id/local-authority/12UE,Huntingdonshire District Council,12/01/2012,527376,260,Post Office  Ltd,CR008902,Document Centre,Vehicle Licence,609
http://statistics.data.gov.uk/id/local-authority/12UE,Huntingdonshire District Council,05/01/2012,95119,2437,Swan Print,CR413699,Document Centre,Subcontractors,777
http://statistics.data.gov.uk/id/local-authority/12UE,Huntingdonshire District Council,05/01/2012,96275,1732,Staffline Group,CR416827,Domestic Refuse,Hired Staff,100
http://statistics.data.gov.uk/id/local-authority/12UE,Huntingdonshire District Council,05/01/2012,96277,993,Staffline Group,CR416827,Domestic Refuse,Hired Staff,100
http://statistics.data.gov.uk/id/local-authority/12UE,Huntingdonshire District Council,12/01/2012,96285,821,Staffline Group,CR416827,Domestic Refuse,Hired Staff,100
http://statistics.data.gov.uk/id/local-authority/12UE,Huntingdonshire District Council,12/01/2012,96286,749,Staffline Group,CR416827,Domestic Refuse,Hired Staff,100
http://statistics.data.gov.uk/id/local-authority/12UE,Huntingdonshire District Council,26/01/2012,97264,725,Staffline Group,CR416827,Domestic Refuse,Hired Staff,100
http://statistics.data.gov.uk/id/local-authority/12UE,Huntingdonshire District Council,19/01/2012,96751,572,Staffline Group,CR416827,Domestic Refuse,Hired Staff,100
http://statistics.data.gov.uk/id/local-authority/12UE,Huntingdonshire District Council,26/01/2012,97319,570,Staffline Group,CR416827,Domestic Refuse,Hired Staff,100
http://statistics.data.gov.uk/id/local-authority/12UE,Huntingdonshire District Council,12/01/2012,95688,1011,Gelpack Excelsior Limited,CR002966,Domestic Refuse,Refuse Sacks,552
http://statistics.data.gov.uk/id/local-authority/12UE,Huntingdonshire District Council,26/01/2012,96557,723,Burnt Tree Group,CR480897,Domestic Refuse,Vehicle Hire,607
http://statistics.data.gov.uk/id/local-authority/12UE,Huntingdonshire District Council,26/01/2012,96803,1512,Trash Uk Ltd,CR482519,Domestic Refuse,Vehicle Hire,607
http://statistics.data.gov.uk/id/local-authority/12UE,Huntingdonshire District Council,12/01/2012,527376,650,Post Office  Ltd,CR008902,Domestic Refuse,Vehicle Licence,609
http://statistics.data.gov.uk/id/local-authority/12UE,Huntingdonshire District Council,19/01/2012,96261,881,Capital Seating,CR480016,Domestic Refuse,Vehicle Refurbishment,624
http://statistics.data.gov.uk/id/local-authority/12UE,Huntingdonshire District Council,12/01/2012,96256,777,Capital Seating,CR480016,Domestic Refuse,Vehicle Refurbishment,624
http://statistics.data.gov.uk/id/local-authority/12UE,Huntingdonshire District Council,12/01/2012,95686,15686,Dennis Eagle Ltd,CR000200,Domestic Refuse,Vehicle Parts,625
http://statistics.data.gov.uk/id/local-authority/12UE,Huntingdonshire District Council,26/01/2012,96672,2670,Dennis Eagle Ltd,CR000200,Domestic Refuse,Vehicle Parts,625
http://statistics.data.gov.uk/id/local-authority/12UE,Huntingdonshire District Council,26/01/2012,96670,1200,Dennis Eagle Ltd,CR000200,Domestic Refuse,Vehicle Parts,625
http://statistics.data.gov.uk/id/local-authority/12UE,Huntingdonshire District Council,26/01/2012,96671,852,Dennis Eagle Ltd,CR000200,Domestic Refuse,Vehicle Parts,625
http://statistics.data.gov.uk/id/local-authority/12UE,Huntingdonshire District Council,26/01/2012,96858,730,Dennis Eagle Ltd,CR000200,Domestic Refuse,Vehicle Parts,625
http://statistics.data.gov.uk/id/local-authority/12UE,Huntingdonshire District Council,05/01/2012,96235,665,Dennis Eagle Ltd,CR000200,Domestic Refuse,Vehicle Parts,625
http://statistics.data.gov.uk/id/local-authority/12UE,Huntingdonshire District Council,26/01/2012,96673,540,Dennis Eagle Ltd,CR000200,Domestic Refuse,Vehicle Parts,625
http://statistics.data.gov.uk/id/local-authority/12UE,Huntingdonshire District Council,05/01/2012,95651,704,Terberg Matec Uk Ltd,CR402183,Domestic Refuse,Vehicle Parts,625
http://statistics.data.gov.uk/id/local-authority/12UE,Huntingdonshire District Council,12/01/2012,95663,2113,Freedom Lubricants Ltd,CR411569,Domestic Refuse,Vehicle Oil,626
http://statistics.data.gov.uk/id/local-authority/12UE,Huntingdonshire District Council,26/01/2012,96695,3641,Bandvulc Tyres Ltd,CR406810,Domestic Refuse,Tyres,630
http://statistics.data.gov.uk/id/local-authority/12UE,Huntingdonshire District Council,19/01/2012,97050,5176,Swalec,CR407130,Efh & Depots,Electricity,420
http://statistics.data.gov.uk/id/local-authority/12UE,Huntingdonshire District Council,05/01/2012,96253,639,Swalec,CR407130,Efh & Depots,Electricity,420
http://statistics.data.gov.uk/id/local-authority/12UE,Huntingdonshire District Council,19/01/2012,97076,866,E-On Energy,CR416430,Efh & Depots,Gas,421
http://statistics.data.gov.uk/id/local-authority/12UE,Huntingdonshire District Council,05/01/2012,95826,854,Anglian Water,CR000071,Efh & Depots,Water,432
http://statistics.data.gov.uk/id/local-authority/12UE,Huntingdonshire District Council,05/01/2012,95826,960,Anglian Water,CR000071,Efh & Depots,Sewerage,433
http://statistics.data.gov.uk/id/local-authority/12UE,Huntingdonshire District Council,12/01/2012,96226,1357,Ecocleen Services Limited,CR406985,Efh & Depots,Building Cleaning Internal,440
http://statistics.data.gov.uk/id/local-authority/12UE,Huntingdonshire District Council,12/01/2012,96118,624,Secura Cam,CR411885,Efh & Depots,Equipment Purchases,500
http://statistics.data.gov.uk/id/local-authority/12UE,Huntingdonshire District Council,05/01/2012,95627,50,T N T Post Midlands Ltd,CR479965,Elections,Postage,231
http://statistics.data.gov.uk/id/local-authority/12UE,Huntingdonshire District Council,19/01/2012,96515,99,T N T Post Midlands Ltd,CR479965,Elections,Postage,231
http://statistics.data.gov.uk/id/local-authority/12UE,Huntingdonshire District Council,12/01/2012,95620,1100,Archant Herts And Cambs,CR403271,Energy Efficiency,Advertising/Promoting Services,255
http://statistics.data.gov.uk/id/local-authority/12UE,Huntingdonshire District Council,19/01/2012,95827,4800,Redcote Llp,CR482584,Energy Efficiency,Consultants,711
http://statistics.data.gov.uk/id/local-authority/12UE,Huntingdonshire District Council,26/01/2012,97039,4759,Lex Autolease Ltd,CR410751,Engineering & Arch M Us,Vehicle Operating Lease,601
http://statistics.data.gov.uk/id/local-authority/12UE,Huntingdonshire District Council,19/01/2012,96319,611,Osborne Richardson,CR482551,Environmental Health M Us,Hired Staff,100
http://statistics.data.gov.uk/id/local-authority/12UE,Huntingdonshire District Council,05/01/2012,95244,593,Osborne Richardson,CR482551,Environmental Health M Us,Hired Staff,100
http://statistics.data.gov.uk/id/local-authority/12UE,Huntingdonshire District Council,12/01/2012,95705,557,Osborne Richardson,CR482551,Environmental Health M Us,Hired Staff,100
http://statistics.data.gov.uk/id/local-authority/12UE,Huntingdonshire District Council,26/01/2012,96830,596,J Breheny Contractors Ltd,CR000314,Environmental Imps Mgt,Sitework,359
http://statistics.data.gov.uk/id/local-authority/12UE,Huntingdonshire District Council,19/01/2012,96516,11543,Deloitte,CR416667,Estates Properties Capital,Consultants,711
http://statistics.data.gov.uk/id/local-authority/12UE,Huntingdonshire District Council,12/01/2012,95849,1240,Deloitte,CR416667,Estates Properties Capital,Consultants,711
http://statistics.data.gov.uk/id/local-authority/12UE,Huntingdonshire District Council,26/01/2012,97539,669,Deloitte,CR416667,Estates Properties Capital,Consultants,711
http://statistics.data.gov.uk/id/local-authority/12UE,Huntingdonshire District Council,30/01/2012,528116,243000,Optima Legal,CR482570,Estates Properties Capital,Legal Fees,729
http://statistics.data.gov.uk/id/local-authority/12UE,Huntingdonshire District Council,26/01/2012,95841,-4725,Lex Autolease Ltd,CR410751,Executive Director,Vehicle Operating Lease,601
http://statistics.data.gov.uk/id/local-authority/12UE,Huntingdonshire District Council,19/01/2012,96334,9072,Pricewaterhouse Coopers Llp,CR487210,External Audit,Audit Fees,701
http://statistics.data.gov.uk/id/local-authority/12UE,Huntingdonshire District Council,19/01/2012,96338,2145,Advanced Business Solutions,CR032921,Financial Services,Software,206
http://statistics.data.gov.uk/id/local-authority/12UE,Huntingdonshire District Council,19/01/2012,96337,1285,Advanced Business Solutions,CR032921,Financial Services,Software,206
http://statistics.data.gov.uk/id/local-authority/12UE,Huntingdonshire District Council,05/01/2012,95173,2400,Zurich Municipal,CR477397,Financial Services,Software,206
http://statistics.data.gov.uk/id/local-authority/12UE,Huntingdonshire District Council,05/01/2012,95393,666,The Ipc Group,CR482404,Financial Services Mus,Microfilming & Scanning,230
http://statistics.data.gov.uk/id/local-authority/12UE,Huntingdonshire District Council,26/01/2012,97041,4125,Lex Autolease Ltd,CR410751,Financial Services Mus,Vehicle Operating Lease,601
http://statistics.data.gov.uk/id/local-authority/12UE,Huntingdonshire District Council,26/01/2012,96567,936,Days Contract Hire,CR417030,Fleet Management,Vehicle Finance Leases,602
http://statistics.data.gov.uk/id/local-authority/12UE,Huntingdonshire District Council,26/01/2012,96567,93,Days Contract Hire,CR417030,Fleet Management,Vehicle Service,621
http://statistics.data.gov.uk/id/local-authority/12UE,Huntingdonshire District Council,26/01/2012,97698,6957,Computershare Vouchers Ltd,CR412205,General Creditors,Deductions Paid To Third Party,26
http://statistics.data.gov.uk/id/local-authority/12UE,Huntingdonshire District Council,12/01/2012,96503,5971,Computershare Vouchers Ltd,CR412205,General Creditors,Deductions Paid To Third Party,26
http://statistics.data.gov.uk/id/local-authority/12UE,Huntingdonshire District Council,12/01/2012,95697,658,Berrycroft Stores Ltd,CR000298,Grounds Maintenance (Combined),Equipment Purchases,500
http://statistics.data.gov.uk/id/local-authority/12UE,Huntingdonshire District Council,26/01/2012,96565,779,Arthur Ibbett Ltd,CR000430,Grounds Maintenance (Combined),Materials,550
http://statistics.data.gov.uk/id/local-authority/12UE,Huntingdonshire District Council,12/01/2012,95695,2244,Fleet Line Markers Ltd,CR406897,Grounds Maintenance (Combined),Materials,550
http://statistics.data.gov.uk/id/local-authority/12UE,Huntingdonshire District Council,19/01/2012,96264,618,S Robb & Son,CR487232,Grounds Maintenance (Combined),Materials,550
http://statistics.data.gov.uk/id/local-authority/12UE,Huntingdonshire District Council,05/01/2012,96218,2945,Barcham Trees,CR40001,Grounds Maintenance (Combined),Plants And Seeds,556
http://statistics.data.gov.uk/id/local-authority/12UE,Huntingdonshire District Council,12/01/2012,96225,6876,Lubbe & Sons,CR478950,Grounds Maintenance (Combined),Plants And Seeds,556
http://statistics.data.gov.uk/id/local-authority/12UE,Huntingdonshire District Council,12/01/2012,527376,420,Post Office  Ltd,CR008902,Grounds Maintenance (Combined),Vehicle Licence,609
http://statistics.data.gov.uk/id/local-authority/12UE,Huntingdonshire District Council,12/01/2012,96821,918,Ernest Doe & Sons,CR000261,Grounds Maintenance (Combined),Vehicle Parts,625
http://statistics.data.gov.uk/id/local-authority/12UE,Huntingdonshire District Council,12/01/2012,96219,561,Garwood Europe Ltd,CR415210,Grounds Maintenance (Combined),Vehicle Parts,625
http://statistics.data.gov.uk/id/local-authority/12UE,Huntingdonshire District Council,12/01/2012,95663,704,Freedom Lubricants Ltd,CR411569,Grounds Maintenance (Combined),Vehicle Oil,626
http://statistics.data.gov.uk/id/local-authority/12UE,Huntingdonshire District Council,05/01/2012,95171,716,Zurich Municipal,CR003638,Grounds Maintenance (Combined),Insurance Excess,797
http://statistics.data.gov.uk/id/local-authority/12UE,Huntingdonshire District Council,24/01/2012,97543,1434,Frontrange Solutions,CR403465,Helpdesk,Training - Other,136
http://statistics.data.gov.uk/id/local-authority/12UE,Huntingdonshire District Council,26/01/2012,94378,886,Zoho Corporation Private Ltd,CR452714,Helpdesk,Software,206
http://statistics.data.gov.uk/id/local-authority/12UE,Huntingdonshire District Council,19/01/2012,93532,875,Northgate Information Solutions Uk Ltd,CR028925,Helpdesk,Equipment Maintenance,511
http://statistics.data.gov.uk/id/local-authority/12UE,Huntingdonshire District Council,26/01/2012,97291,599,Anglian Water,CR000071,Hinchingbrooke Country Park,Water,432
http://statistics.data.gov.uk/id/local-authority/12UE,Huntingdonshire District Council,19/01/2012,96163,552,Alexanders Self Storage,CR478267,Homelessness Management,Removal/Storage,750
http://statistics.data.gov.uk/id/local-authority/12UE,Huntingdonshire District Council,12/01/2012,96818,16620,Granta Housing Society Ltd,CR003996,Hostel Support,Hostel Revenue Support,817
http://statistics.data.gov.uk/id/local-authority/12UE,Huntingdonshire District Council,19/01/2012,96819,16620,Granta Housing Society Ltd,CR003996,Hostel Support,Hostel Revenue Support,817
http://statistics.data.gov.uk/id/local-authority/12UE,Huntingdonshire District Council,26/01/2012,97720,974,James Andrews Recruitment,CR453753,Housing Management Units,Hired Staff,100
http://statistics.data.gov.uk/id/local-authority/12UE,Huntingdonshire District Council,12/01/2012,96736,816,James Andrews Recruitment,CR453753,Housing Management Units,Hired Staff,100
http://statistics.data.gov.uk/id/local-authority/12UE,Huntingdonshire District Council,12/01/2012,96164,685,James Andrews Recruitment,CR453753,Housing Management Units,Hired Staff,100
http://statistics.data.gov.uk/id/local-authority/12UE,Huntingdonshire District Council,26/01/2012,97718,1198,Ld Events,CR480610,Housing Management Units,Training - Operational,131
http://statistics.data.gov.uk/id/local-authority/12UE,Huntingdonshire District Council,19/01/2012,96833,2705,Swalec,CR407130,Housing Services Other,Electricity,420
http://statistics.data.gov.uk/id/local-authority/12UE,Huntingdonshire District Council,05/01/2012,96366,1857,Swalec,CR407130,Housing Services Other,Electricity,420
http://statistics.data.gov.uk/id/local-authority/12UE,Huntingdonshire District Council,05/01/2012,96332,6122,Luminus Homes,CR401276,Housing Services Other,Management Charge,733
http://statistics.data.gov.uk/id/local-authority/12UE,Huntingdonshire District Council,12/01/2012,96584,585,Cambridge Skills Consultancy Ltd,CR406577,Human Resources,Training - Other,136
http://statistics.data.gov.uk/id/local-authority/12UE,Huntingdonshire District Council,12/01/2012,96523,2800,Rsa Environmental Health Limited,CR482415,Human Resources,Consultants,711
http://statistics.data.gov.uk/id/local-authority/12UE,Huntingdonshire District Council,19/01/2012,96768,3960,M & J Commercial Restorations Ltd,CR480453,Leisure Centres Capital,Training - Best Value,135
http://statistics.data.gov.uk/id/local-authority/12UE,Huntingdonshire District Council,12/01/2012,96633,80041,Building Services Design - Bsd,CR409263,Leisure Centres Capital,Consultants,711
http://statistics.data.gov.uk/id/local-authority/12UE,Huntingdonshire District Council,12/01/2012,95728,1552,T N T Post Midlands Ltd,CR479965,Leisure Centres Overall,Postage,231
http://statistics.data.gov.uk/id/local-authority/12UE,Huntingdonshire District Council,19/01/2012,96146,2915,Primesight  Ltd,CR132710,Leisure Centres Overall,Advertising/Promoting Services,255
http://statistics.data.gov.uk/id/local-authority/12UE,Huntingdonshire District Council,05/01/2012,95627,244,T N T Post Midlands Ltd,CR479965,Leisure Development,Postage,231
http://statistics.data.gov.uk/id/local-authority/12UE,Huntingdonshire District Council,12/01/2012,95236,1561,T C Harrison Ford,CR405072,Licences,Vehicle Inspection,618
http://statistics.data.gov.uk/id/local-authority/12UE,Huntingdonshire District Council,05/01/2012,96222,2468,John Henry & Sons,CR031967,Littering,Sitework,359
http://statistics.data.gov.uk/id/local-authority/12UE,Huntingdonshire District Council,05/01/2012,95333,16821,Ssi Schaefer Ltd,CR407190,Littering,Litter Bins,520
http://statistics.data.gov.uk/id/local-authority/12UE,Huntingdonshire District Council,26/01/2012,97040,7917,Lex Autolease Ltd,CR410751,Managing Director (Cpp),Vehicle Operating Lease,601
http://statistics.data.gov.uk/id/local-authority/12UE,Huntingdonshire District Council,26/01/2012,96539,1816,Global Radio Services Ltd,CR480114,Markets,Advertising/Promoting Services,255
http://statistics.data.gov.uk/id/local-authority/12UE,Huntingdonshire District Council,26/01/2012,96190,850,Portakabin Ltd,CR478566,Miscellaneous Grants,Hire Of Rooms,411
http://statistics.data.gov.uk/id/local-authority/12UE,Huntingdonshire District Council,19/01/2012,96339,20400,Advanced Business Solutions,CR032921,Network Services,Hired Staff,100
http://statistics.data.gov.uk/id/local-authority/12UE,Huntingdonshire District Council,05/01/2012,95308,11340,Virgin Media Business,CR033120,Network Services,I T Line Rental,248
http://statistics.data.gov.uk/id/local-authority/12UE,Huntingdonshire District Council,05/01/2012,95309,1530,Virgin Media Business,CR033120,Network Services,I T Line Rental,248
http://statistics.data.gov.uk/id/local-authority/12UE,Huntingdonshire District Council,19/01/2012,93532,148,Northgate Information Solutions Uk Ltd,CR028925,Network Services,Equipment Maintenance,511
http://statistics.data.gov.uk/id/local-authority/12UE,Huntingdonshire District Council,05/01/2012,96336,657,It Talent Solutions Ltd,CR482676,Network Services,I C T Services,731
http://statistics.data.gov.uk/id/local-authority/12UE,Huntingdonshire District Council,12/01/2012,96569,648,It Talent Solutions Ltd,CR482676,Network Services,I C T Services,731
http://statistics.data.gov.uk/id/local-authority/12UE,Huntingdonshire District Council,26/01/2012,97673,648,It Talent Solutions Ltd,CR482676,Network Services,I C T Services,731
http://statistics.data.gov.uk/id/local-authority/12UE,Huntingdonshire District Council,12/01/2012,96196,576,Dal-Rod Uk Ltd,CR002782,Nightsoil,Subcontractors,777
http://statistics.data.gov.uk/id/local-authority/12UE,Huntingdonshire District Council,12/01/2012,96788,693,Rbd Security Ltd,CR411979,One Leisure Huntingdon,Hired Staff,100
http://statistics.data.gov.uk/id/local-authority/12UE,Huntingdonshire District Council,19/01/2012,97149,120,Rajapack Ltd,CR480770,One Leisure Huntingdon,Advertising/Promoting Services,255
http://statistics.data.gov.uk/id/local-authority/12UE,Huntingdonshire District Council,12/01/2012,96717,565,Chris Robinson T/A Cr Design,CR416482,One Leisure Huntingdon,Gen Building Mtce - Responsive,303
http://statistics.data.gov.uk/id/local-authority/12UE,Huntingdonshire District Council,19/01/2012,97083,3703,E-On Energy,CR416430,One Leisure Huntingdon,Gas,421
http://statistics.data.gov.uk/id/local-authority/12UE,Huntingdonshire District Council,26/01/2012,97689,1033,E-On Energy,CR416430,One Leisure Huntingdon,Gas,421
http://statistics.data.gov.uk/id/local-authority/12UE,Huntingdonshire District Council,19/01/2012,97079,1033,Swalec,CR407130,One Leisure Huntingdon,Gas,421
http://statistics.data.gov.uk/id/local-authority/12UE,Huntingdonshire District Council,12/01/2012,96758,502,Maskearaid Ind Supplies,CR033423,One Leisure Huntingdon,Cleaning Materials,443
http://statistics.data.gov.uk/id/local-authority/12UE,Huntingdonshire District Council,26/01/2012,97622,4218,Technogym Uk Ltd,CR033037,One Leisure Huntingdon,Equipment Purchases,500
http://statistics.data.gov.uk/id/local-authority/12UE,Huntingdonshire District Council,12/01/2012,96804,762,Heineken Uk Ltd,CR032678,One Leisure Huntingdon,Bar Provisions,558
http://statistics.data.gov.uk/id/local-authority/12UE,Huntingdonshire District Council,12/01/2012,96805,698,Heineken Uk Ltd,CR032678,One Leisure Huntingdon,Bar Provisions,558
http://statistics.data.gov.uk/id/local-authority/12UE,Huntingdonshire District Council,19/01/2012,97286,898,Glaxosmithkline,CR010424,One Leisure Huntingdon,Vending Materials,560
http://statistics.data.gov.uk/id/local-authority/12UE,Huntingdonshire District Council,12/01/2012,95416,298,G4s Cashservices Uk Ltd,CR407133,One Leisure Huntingdon,Cash Collection,702
http://statistics.data.gov.uk/id/local-authority/12UE,Huntingdonshire District Council,26/01/2012,97204,298,G4s Cashservices Uk Ltd,CR407133,One Leisure Huntingdon,Cash Collection,702
http://statistics.data.gov.uk/id/local-authority/12UE,Huntingdonshire District Council,19/01/2012,96859,156,Leisure-Net Solutions,CR411853,One Leisure Huntingdon,Consultants,711
http://statistics.data.gov.uk/id/local-authority/12UE,Huntingdonshire District Council,19/01/2012,96868,8522,Performing Right Society,CR033495,One Leisure Huntingdon,Licences,730
http://statistics.data.gov.uk/id/local-authority/12UE,Huntingdonshire District Council,12/01/2012,96778,1060,Reed Events,CR481040,One Leisure Huntingdon,Entertainments Inc Cable Tv,744
http://statistics.data.gov.uk/id/local-authority/12UE,Huntingdonshire District Council,12/01/2012,96747,1381,Ecocleen Services Limited,CR406985,One Leisure Huntingdon,Subcontractors,777
http://statistics.data.gov.uk/id/local-authority/12UE,Huntingdonshire District Council,19/01/2012,97149,80,Rajapack Ltd,CR480770,One Leisure Ramsey,Advertising/Promoting Services,255
http://statistics.data.gov.uk/id/local-authority/12UE,Huntingdonshire District Council,19/01/2012,96586,822,Ecocleen Services Limited,CR406985,One Leisure Ramsey,Gen Building Mtce - Planned,304
http://statistics.data.gov.uk/id/local-authority/12UE,Huntingdonshire District Council,05/01/2012,95751,874,Mcintyre Leisure,CR404059,One Leisure Ramsey,Plant & Equipment Maintenance,380
http://statistics.data.gov.uk/id/local-authority/12UE,Huntingdonshire District Council,19/01/2012,96599,1680,Menerga Ltd,CR033494,One Leisure Ramsey,Plant & Equipment Maintenance,380
http://statistics.data.gov.uk/id/local-authority/12UE,Huntingdonshire District Council,19/01/2012,96861,1584,Swalec,CR407130,One Leisure Ramsey,Electricity,420
http://statistics.data.gov.uk/id/local-authority/12UE,Huntingdonshire District Council,19/01/2012,97074,1879,E-On Energy,CR416430,One Leisure Ramsey,Gas,421
http://statistics.data.gov.uk/id/local-authority/12UE,Huntingdonshire District Council,12/01/2012,526632,881,Abbey College,CR478009,One Leisure Ramsey,Water,432
http://statistics.data.gov.uk/id/local-authority/12UE,Huntingdonshire District Council,12/01/2012,526631,507,Abbey College,CR478009,One Leisure Ramsey,Water,432
http://statistics.data.gov.uk/id/local-authority/12UE,Huntingdonshire District Council,12/01/2012,95416,74,G4s Cashservices Uk Ltd,CR407133,One Leisure Ramsey,Cash Collection,702
http://statistics.data.gov.uk/id/local-authority/12UE,Huntingdonshire District Council,26/01/2012,97204,74,G4s Cashservices Uk Ltd,CR407133,One Leisure Ramsey,Cash Collection,702
http://statistics.data.gov.uk/id/local-authority/12UE,Huntingdonshire District Council,19/01/2012,96859,156,Leisure-Net Solutions,CR411853,One Leisure Ramsey,Consultants,711
http://statistics.data.gov.uk/id/local-authority/12UE,Huntingdonshire District Council,19/01/2012,96868,1978,Performing Right Society,CR033495,One Leisure Ramsey,Licences,730
http://statistics.data.gov.uk/id/local-authority/12UE,Huntingdonshire District Council,19/01/2012,97149,80,Rajapack Ltd,CR480770,One Leisure Sawtry,Advertising/Promoting Services,255
http://statistics.data.gov.uk/id/local-authority/12UE,Huntingdonshire District Council,19/01/2012,96831,3366,Swalec,CR407130,One Leisure Sawtry,Electricity,420
http://statistics.data.gov.uk/id/local-authority/12UE,Huntingdonshire District Council,19/01/2012,97080,2130,E-On Energy,CR416430,One Leisure Sawtry,Gas,421
http://statistics.data.gov.uk/id/local-authority/12UE,Huntingdonshire District Council,05/01/2012,95288,603,Brenntag Uk Ltd,CR015017,One Leisure Sawtry,Chemicals,551
http://statistics.data.gov.uk/id/local-authority/12UE,Huntingdonshire District Council,12/01/2012,95416,74,G4s Cashservices Uk Ltd,CR407133,One Leisure Sawtry,Cash Collection,702
http://statistics.data.gov.uk/id/local-authority/12UE,Huntingdonshire District Council,26/01/2012,97204,74,G4s Cashservices Uk Ltd,CR407133,One Leisure Sawtry,Cash Collection,702
http://statistics.data.gov.uk/id/local-authority/12UE,Huntingdonshire District Council,19/01/2012,96859,156,Leisure-Net Solutions,CR411853,One Leisure Sawtry,Consultants,711
http://statistics.data.gov.uk/id/local-authority/12UE,Huntingdonshire District Council,19/01/2012,96868,2359,Performing Right Society,CR033495,One Leisure Sawtry,Licences,730
http://statistics.data.gov.uk/id/local-authority/12UE,Huntingdonshire District Council,05/01/2012,96311,1399,Affinity Nationwide Support Services,CR482612,One Leisure St Ives,Hired Staff,100
http://statistics.data.gov.uk/id/local-authority/12UE,Huntingdonshire District Council,26/01/2012,97710,931,Starlite Roadshow,CR024127,One Leisure St Ives,Hired Staff,100
http://statistics.data.gov.uk/id/local-authority/12UE,Huntingdonshire District Council,19/01/2012,97149,120,Rajapack Ltd,CR480770,One Leisure St Ives,Advertising/Promoting Services,255
http://statistics.data.gov.uk/id/local-authority/12UE,Huntingdonshire District Council,19/01/2012,97157,535,Uk Point Of Sale Group Ltd,CR478991,One Leisure St Ives,Advertising/Promoting Services,255
http://statistics.data.gov.uk/id/local-authority/12UE,Huntingdonshire District Council,05/01/2012,96157,1449,Roger Wilson Electronics,CR028041,One Leisure St Ives,Gen Building Mtce - Responsive,303
http://statistics.data.gov.uk/id/local-authority/12UE,Huntingdonshire District Council,19/01/2012,97180,1090,Roger Wilson Electronics,CR028041,One Leisure St Ives,Gen Building Mtce - Responsive,303
http://statistics.data.gov.uk/id/local-authority/12UE,Huntingdonshire District Council,19/01/2012,96313,2700,Artificial Grass Maintenance Ltd,CR487264,One Leisure St Ives,Gen Building Mtce - Planned,304
http://statistics.data.gov.uk/id/local-authority/12UE,Huntingdonshire District Council,12/01/2012,96865,1000,Bryan Mutter Tree Surgeon,CR453783,One Leisure St Ives,Grounds Mtce Contractors,351
http://statistics.data.gov.uk/id/local-authority/12UE,Huntingdonshire District Council,05/01/2012,95759,518,Edf Energy Customer Field Services,CR477611,One Leisure St Ives,Rent,410
http://statistics.data.gov.uk/id/local-authority/12UE,Huntingdonshire District Council,19/01/2012,97054,7833,Swalec,CR407130,One Leisure St Ives,Electricity,420
http://statistics.data.gov.uk/id/local-authority/12UE,Huntingdonshire District Council,19/01/2012,97051,2579,Swalec,CR407130,One Leisure St Ives,Electricity,420
http://statistics.data.gov.uk/id/local-authority/12UE,Huntingdonshire District Council,19/01/2012,97072,3402,E-On Energy,CR416430,One Leisure St Ives,Gas,421
http://statistics.data.gov.uk/id/local-authority/12UE,Huntingdonshire District Council,19/01/2012,97078,747,E-On Energy,CR416430,One Leisure St Ives,Gas,421
http://statistics.data.gov.uk/id/local-authority/12UE,Huntingdonshire District Council,12/01/2012,96153,1750,Ecocleen Services Limited,CR406985,One Leisure St Ives,Building Cleaning Internal,440
http://statistics.data.gov.uk/id/local-authority/12UE,Huntingdonshire District Council,05/01/2012,95202,706,Chemaide Limited,CR416597,One Leisure St Ives,Cleaning Materials,443
http://statistics.data.gov.uk/id/local-authority/12UE,Huntingdonshire District Council,26/01/2012,97747,865,Scomac Catering Equip Ltd,CR453805,One Leisure St Ives,Equipment Purchases,500
http://statistics.data.gov.uk/id/local-authority/12UE,Huntingdonshire District Council,05/01/2012,95714,614,Honeywell Novar Systems,CR406826,One Leisure St Ives,Equipment Maintenance,511
http://statistics.data.gov.uk/id/local-authority/12UE,Huntingdonshire District Council,26/01/2012,96617,2448,R S Air Conditioning Ltd,CR478470,One Leisure St Ives,Equipment Maintenance,511
http://statistics.data.gov.uk/id/local-authority/12UE,Huntingdonshire District Council,26/01/2012,97186,3580,Technogym Uk Ltd,CR033037,One Leisure St Ives,Equipment Maintenance,511
http://statistics.data.gov.uk/id/local-authority/12UE,Huntingdonshire District Council,12/01/2012,96644,5,Booker Cash And Carry,CR027611,One Leisure St Ives,Materials,550
http://statistics.data.gov.uk/id/local-authority/12UE,Huntingdonshire District Council,12/01/2012,96642,152,Booker Cash And Carry,CR027611,One Leisure St Ives,Materials,550
http://statistics.data.gov.uk/id/local-authority/12UE,Huntingdonshire District Council,12/01/2012,96645,131,Booker Cash And Carry,CR027611,One Leisure St Ives,Materials,550
http://statistics.data.gov.uk/id/local-authority/12UE,Huntingdonshire District Council,19/01/2012,97180,180,Roger Wilson Electronics,CR028041,One Leisure St Ives,Materials,550
http://statistics.data.gov.uk/id/local-authority/12UE,Huntingdonshire District Council,19/01/2012,96149,1073,Brenntag Uk Ltd,CR015017,One Leisure St Ives,Chemicals,551
http://statistics.data.gov.uk/id/local-authority/12UE,Huntingdonshire District Council,12/01/2012,96644,2069,Booker Cash And Carry,CR027611,One Leisure St Ives,Bar Provisions,558
http://statistics.data.gov.uk/id/local-authority/12UE,Huntingdonshire District Council,12/01/2012,96642,979,Booker Cash And Carry,CR027611,One Leisure St Ives,Bar Provisions,558
http://statistics.data.gov.uk/id/local-authority/12UE,Huntingdonshire District Council,12/01/2012,96645,862,Booker Cash And Carry,CR027611,One Leisure St Ives,Bar Provisions,558
http://statistics.data.gov.uk/id/local-authority/12UE,Huntingdonshire District Council,12/01/2012,96637,4636,Heineken Uk Ltd,CR032678,One Leisure St Ives,Bar Provisions,558
http://statistics.data.gov.uk/id/local-authority/12UE,Huntingdonshire District Council,12/01/2012,96636,932,Heineken Uk Ltd,CR032678,One Leisure St Ives,Bar Provisions,558
http://statistics.data.gov.uk/id/local-authority/12UE,Huntingdonshire District Council,12/01/2012,96640,599,Heineken Uk Ltd,CR032678,One Leisure St Ives,Bar Provisions,558
http://statistics.data.gov.uk/id/local-authority/12UE,Huntingdonshire District Council,12/01/2012,96642,225,Booker Cash And Carry,CR027611,One Leisure St Ives,Catering Materials,559
http://statistics.data.gov.uk/id/local-authority/12UE,Huntingdonshire District Council,12/01/2012,96645,84,Booker Cash And Carry,CR027611,One Leisure St Ives,Catering Materials,559
http://statistics.data.gov.uk/id/local-authority/12UE,Huntingdonshire District Council,12/01/2012,96647,1023,Booker Cash And Carry,CR027611,One Leisure St Ives,Vending Materials,560
http://statistics.data.gov.uk/id/local-authority/12UE,Huntingdonshire District Council,12/01/2012,95285,774,Glaxosmithkline,CR010424,One Leisure St Ives,Vending Materials,560
http://statistics.data.gov.uk/id/local-authority/12UE,Huntingdonshire District Council,12/01/2012,96864,803,Zoggs International Ltd,CR004270,One Leisure St Ives,Materials For Resale,570
http://statistics.data.gov.uk/id/local-authority/12UE,Huntingdonshire District Council,12/01/2012,96644,5,Booker Cash And Carry,CR027611,One Leisure St Ives,Confectionery,572
http://statistics.data.gov.uk/id/local-authority/12UE,Huntingdonshire District Council,12/01/2012,96642,12,Booker Cash And Carry,CR027611,One Leisure St Ives,Confectionery,572
http://statistics.data.gov.uk/id/local-authority/12UE,Huntingdonshire District Council,12/01/2012,96645,23,Booker Cash And Carry,CR027611,One Leisure St Ives,Confectionery,572
http://statistics.data.gov.uk/id/local-authority/12UE,Huntingdonshire District Council,12/01/2012,95416,223,G4s Cashservices Uk Ltd,CR407133,One Leisure St Ives,Cash Collection,702
http://statistics.data.gov.uk/id/local-authority/12UE,Huntingdonshire District Council,26/01/2012,97204,223,G4s Cashservices Uk Ltd,CR407133,One Leisure St Ives,Cash Collection,702
http://statistics.data.gov.uk/id/local-authority/12UE,Huntingdonshire District Council,19/01/2012,96859,156,Leisure-Net Solutions,CR411853,One Leisure St Ives,Consultants,711
http://statistics.data.gov.uk/id/local-authority/12UE,Huntingdonshire District Council,19/01/2012,96868,2447,Performing Right Society,CR033495,One Leisure St Ives,Licences,730
http://statistics.data.gov.uk/id/local-authority/12UE,Huntingdonshire District Council,05/01/2012,96147,517,Sky Business,CR033259,One Leisure St Ives,Entertainments Inc Cable Tv,744
http://statistics.data.gov.uk/id/local-authority/12UE,Huntingdonshire District Council,26/01/2012,97706,517,Sky Business,CR033259,One Leisure St Ives,Entertainments Inc Cable Tv,744
http://statistics.data.gov.uk/id/local-authority/12UE,Huntingdonshire District Council,05/01/2012,96312,18,Technogym Uk Ltd,CR033037,One Leisure St Neots,Postage,231
http://statistics.data.gov.uk/id/local-authority/12UE,Huntingdonshire District Council,19/01/2012,97149,120,Rajapack Ltd,CR480770,One Leisure St Neots,Advertising/Promoting Services,255
http://statistics.data.gov.uk/id/local-authority/12UE,Huntingdonshire District Council,05/01/2012,95345,1019,Tormax Ltd,CR478667,One Leisure St Neots,Gen Building Mtce - Responsive,303
http://statistics.data.gov.uk/id/local-authority/12UE,Huntingdonshire District Council,05/01/2012,95850,3603,Gladstone Mrm,CR405717,One Leisure St Neots,Gen Building Mtce - Planned,304
http://statistics.data.gov.uk/id/local-authority/12UE,Huntingdonshire District Council,05/01/2012,95328,2508,R S Air Conditioning Ltd,CR478470,One Leisure St Neots,Gen Building Mtce - Planned,304
http://statistics.data.gov.uk/id/local-authority/12UE,Huntingdonshire District Council,19/01/2012,97235,8429,Swalec,CR407130,One Leisure St Neots,Electricity,420
http://statistics.data.gov.uk/id/local-authority/12UE,Huntingdonshire District Council,19/01/2012,97082,2690,E-On Energy,CR416430,One Leisure St Neots,Gas,421
http://statistics.data.gov.uk/id/local-authority/12UE,Huntingdonshire District Council,19/01/2012,97326,599,Anglian Water,CR000071,One Leisure St Neots,Water,432
http://statistics.data.gov.uk/id/local-authority/12UE,Huntingdonshire District Council,05/01/2012,95329,500,Anglian Chemicals Ltd,CR401515,One Leisure St Neots,Cleaning Materials,443
http://statistics.data.gov.uk/id/local-authority/12UE,Huntingdonshire District Council,26/01/2012,97667,1280,Chubb Electronic Security,CR029346,One Leisure St Neots,Security,450
http://statistics.data.gov.uk/id/local-authority/12UE,Huntingdonshire District Council,26/01/2012,96700,1548,Associated Catering Equipment,CR481172,One Leisure St Neots,Equipment Purchases,500
http://statistics.data.gov.uk/id/local-authority/12UE,Huntingdonshire District Council,05/01/2012,96312,4110,Technogym Uk Ltd,CR033037,One Leisure St Neots,Equipment Purchases,500
http://statistics.data.gov.uk/id/local-authority/12UE,Huntingdonshire District Council,26/01/2012,97272,3704,Technogym Uk Ltd,CR033037,One Leisure St Neots,Equipment Maintenance,511
http://statistics.data.gov.uk/id/local-authority/12UE,Huntingdonshire District Council,26/01/2012,97273,720,Warboys Services Ltd,CR000841,One Leisure St Neots,Equipment Maintenance,511
http://statistics.data.gov.uk/id/local-authority/12UE,Huntingdonshire District Council,12/01/2012,95799,743,Brenntag Uk Ltd,CR015017,One Leisure St Neots,Chemicals,551
http://statistics.data.gov.uk/id/local-authority/12UE,Huntingdonshire District Council,12/01/2012,95416,446,G4s Cashservices Uk Ltd,CR407133,One Leisure St Neots,Cash Collection,702
http://statistics.data.gov.uk/id/local-authority/12UE,Huntingdonshire District Council,26/01/2012,97204,446,G4s Cashservices Uk Ltd,CR407133,One Leisure St Neots,Cash Collection,702
http://statistics.data.gov.uk/id/local-authority/12UE,Huntingdonshire District Council,19/01/2012,96859,156,Leisure-Net Solutions,CR411853,One Leisure St Neots,Consultants,711
http://statistics.data.gov.uk/id/local-authority/12UE,Huntingdonshire District Council,19/01/2012,96868,7086,Performing Right Society,CR033495,One Leisure St Neots,Licences,730
http://statistics.data.gov.uk/id/local-authority/12UE,Huntingdonshire District Council,12/01/2012,95731,719,Keep Britain Tidy,CR479974,Operations Mgt Units,Training - Operational,131
http://statistics.data.gov.uk/id/local-authority/12UE,Huntingdonshire District Council,12/01/2012,96737,505,Marshall Motor Group,CR009641,Operations Mgt Units,Vehicle Parts,625
http://statistics.data.gov.uk/id/local-authority/12UE,Huntingdonshire District Council,26/01/2012,96505,335,Edrm Systems Ltd,CR416278,Operations Mgt Units,Consultants,711
http://statistics.data.gov.uk/id/local-authority/12UE,Huntingdonshire District Council,26/01/2012,96505,335,Edrm Systems Ltd,CR416278,Other Operating Inc & Expend,Consultants,711
http://statistics.data.gov.uk/id/local-authority/12UE,Huntingdonshire District Council,26/01/2012,96832,1194,J Breheny Contractors Ltd,CR000314,Parks & Open Spaces,Sitework,359
http://statistics.data.gov.uk/id/local-authority/12UE,Huntingdonshire District Council,05/01/2012,95390,3779,Pro-Teq Surfacing Uk Ltd,CR480863,Parks & Open Spaces,Sitework,359
http://statistics.data.gov.uk/id/local-authority/12UE,Huntingdonshire District Council,05/01/2012,95391,2609,Pro-Teq Surfacing Uk Ltd,CR480863,Parks & Open Spaces,Sitework,359
http://statistics.data.gov.uk/id/local-authority/12UE,Huntingdonshire District Council,12/01/2012,96290,1044,Ndt Services Limited,CR453760,Parks & Open Spaces,Playground Equipment,360
http://statistics.data.gov.uk/id/local-authority/12UE,Huntingdonshire District Council,12/01/2012,96289,6206,St Neots Fencing Company,CR478488,Parks Equipment Capital,Playground Equipment,360
http://statistics.data.gov.uk/id/local-authority/12UE,Huntingdonshire District Council,26/01/2012,97336,520,Burgin Ltd,CR482438,Pathfinder House Site,Gen Building Mtce - Responsive,303
http://statistics.data.gov.uk/id/local-authority/12UE,Huntingdonshire District Council,25/01/2012,97110,200,Dms Home Improvements & Electrical,CR479202,Pathfinder House Site,Gen Building Mtce - Responsive,303
http://statistics.data.gov.uk/id/local-authority/12UE,Huntingdonshire District Council,26/01/2012,97743,200,Dms Home Improvements & Electrical,CR479202,Pathfinder House Site,Gen Building Mtce - Responsive,303
http://statistics.data.gov.uk/id/local-authority/12UE,Huntingdonshire District Council,25/01/2012,97696,-200,Dms Home Improvements & Electrical,CR479202,Pathfinder House Site,Gen Building Mtce - Responsive,303
http://statistics.data.gov.uk/id/local-authority/12UE,Huntingdonshire District Council,12/01/2012,95404,1008,P A Collacott & Company,CR482300,Pathfinder House Site,Gen Building Mtce - Responsive,303
http://statistics.data.gov.uk/id/local-authority/12UE,Huntingdonshire District Council,19/01/2012,97053,8332,Swalec,CR407130,Pathfinder House Site,Electricity,420
http://statistics.data.gov.uk/id/local-authority/12UE,Huntingdonshire District Council,19/01/2012,97084,2885,E-On Energy,CR416430,Pathfinder House Site,Gas,421
http://statistics.data.gov.uk/id/local-authority/12UE,Huntingdonshire District Council,05/01/2012,96255,1860,Swalec,CR407130,Pathfinder House Site,Gas,421
http://statistics.data.gov.uk/id/local-authority/12UE,Huntingdonshire District Council,26/01/2012,97525,2940,Anglian Water,CR000071,Pathfinder House Site,Water,432
http://statistics.data.gov.uk/id/local-authority/12UE,Huntingdonshire District Council,26/01/2012,97526,409,Anglian Water,CR000071,Pathfinder House Site,Water,432
http://statistics.data.gov.uk/id/local-authority/12UE,Huntingdonshire District Council,26/01/2012,97525,3219,Anglian Water,CR000071,Pathfinder House Site,Sewerage,433
http://statistics.data.gov.uk/id/local-authority/12UE,Huntingdonshire District Council,26/01/2012,97526,477,Anglian Water,CR000071,Pathfinder House Site,Sewerage,433
http://statistics.data.gov.uk/id/local-authority/12UE,Huntingdonshire District Council,12/01/2012,96227,2147,Ecocleen Services Limited,CR406985,Pathfinder House Site,Building Cleaning Internal,440
http://statistics.data.gov.uk/id/local-authority/12UE,Huntingdonshire District Council,19/01/2012,96259,718,Hq Forklifts Ltd,CR404076,Pathfinder House Site,Equipment Purchases,500
http://statistics.data.gov.uk/id/local-authority/12UE,Huntingdonshire District Council,05/01/2012,96254,632,Swalec,CR407130,Pavillions,Electricity,420
http://statistics.data.gov.uk/id/local-authority/12UE,Huntingdonshire District Council,05/01/2012,96251,1810,Swalec,CR407130,Paxton Pits,Electricity,420
http://statistics.data.gov.uk/id/local-authority/12UE,Huntingdonshire District Council,12/01/2012,96835,-1810,Swalec,CR407130,Paxton Pits,Electricity,420
http://statistics.data.gov.uk/id/local-authority/12UE,Huntingdonshire District Council,26/01/2012,97105,263,Arthur Ibbett Ltd,CR000430,Paxton Pits,Equipment Purchases,500
http://statistics.data.gov.uk/id/local-authority/12UE,Huntingdonshire District Council,26/01/2012,97105,495,Arthur Ibbett Ltd,CR000430,Paxton Pits,Materials,550
http://statistics.data.gov.uk/id/local-authority/12UE,Huntingdonshire District Council,12/01/2012,527376,210,Post Office  Ltd,CR008902,Paxton Pits,Vehicle Licence,609
http://statistics.data.gov.uk/id/local-authority/12UE,Huntingdonshire District Council,26/01/2012,97105,105,Arthur Ibbett Ltd,CR000430,Paxton Pits,Vehicle Maintenance,619
http://statistics.data.gov.uk/id/local-authority/12UE,Huntingdonshire District Council,19/01/2012,97034,600,Hbj Gateley Wareing,CR487198,Paxton Pits,Legal Fees,729
http://statistics.data.gov.uk/id/local-authority/12UE,Huntingdonshire District Council,26/01/2012,97698,459,Computershare Vouchers Ltd,CR412205,Payroll,Childcare Admin Vouchers,144
http://statistics.data.gov.uk/id/local-authority/12UE,Huntingdonshire District Council,12/01/2012,96503,394,Computershare Vouchers Ltd,CR412205,Payroll,Childcare Admin Vouchers,144
http://statistics.data.gov.uk/id/local-authority/12UE,Huntingdonshire District Council,26/01/2012,526772,1548,South Bank University,CR033465,Planning M U'S,Training - Professional,130
http://statistics.data.gov.uk/id/local-authority/12UE,Huntingdonshire District Council,26/01/2012,528094,645,South Bank University,CR033465,Planning M U'S,Training - Professional,130
http://statistics.data.gov.uk/id/local-authority/12UE,Huntingdonshire District Council,26/01/2012,526771,-1720,South Bank University,CR033465,Planning M U'S,Training - Professional,130
http://statistics.data.gov.uk/id/local-authority/12UE,Huntingdonshire District Council,26/01/2012,96869,6541,J Breheny Contractors Ltd,CR000314,Property Development And Mgt,Sitework,359
http://statistics.data.gov.uk/id/local-authority/12UE,Huntingdonshire District Council,26/01/2012,96783,695,J Breheny Contractors Ltd,CR000314,Property Development And Mgt,Sitework,359
http://statistics.data.gov.uk/id/local-authority/12UE,Huntingdonshire District Council,05/01/2012,96242,785,Swalec,CR407130,Property Development And Mgt,Electricity,420
http://statistics.data.gov.uk/id/local-authority/12UE,Huntingdonshire District Council,12/01/2012,96224,1027,Ecocleen Services Limited,CR406985,Public Conveniences,Building Cleaning Internal,440
http://statistics.data.gov.uk/id/local-authority/12UE,Huntingdonshire District Council,12/01/2012,96223,658,Ecocleen Services Limited,CR406985,Public Conveniences,Building Cleaning Internal,440
http://statistics.data.gov.uk/id/local-authority/12UE,Huntingdonshire District Council,05/01/2012,96280,1793,Staffline Group,CR416827,Recycling,Hired Staff,100
http://statistics.data.gov.uk/id/local-authority/12UE,Huntingdonshire District Council,12/01/2012,96284,1393,Staffline Group,CR416827,Recycling,Hired Staff,100
http://statistics.data.gov.uk/id/local-authority/12UE,Huntingdonshire District Council,19/01/2012,96754,1304,Staffline Group,CR416827,Recycling,Hired Staff,100
http://statistics.data.gov.uk/id/local-authority/12UE,Huntingdonshire District Council,26/01/2012,96695,338,Bandvulc Tyres Ltd,CR406810,Recycling,Tyres,630
http://statistics.data.gov.uk/id/local-authority/12UE,Huntingdonshire District Council,12/01/2012,96287,3328,Viridor Waste Management Ltd,CR482408,Recycling,Recycling Collections,747
http://statistics.data.gov.uk/id/local-authority/12UE,Huntingdonshire District Council,12/01/2012,96288,1257,Viridor Waste Management Ltd,CR482408,Recycling,Recycling Collections,747
http://statistics.data.gov.uk/id/local-authority/12UE,Huntingdonshire District Council,05/01/2012,95166,1089,Badenoch And Clark,CR410510,Revenue Services Mus,Hired Staff,100
http://statistics.data.gov.uk/id/local-authority/12UE,Huntingdonshire District Council,05/01/2012,95165,1081,Badenoch And Clark,CR410510,Revenue Services Mus,Hired Staff,100
http://statistics.data.gov.uk/id/local-authority/12UE,Huntingdonshire District Council,12/01/2012,96639,1261,Venn Group Recruitment,CR415403,Revenue Services Mus,Hired Staff,100
http://statistics.data.gov.uk/id/local-authority/12UE,Huntingdonshire District Council,12/01/2012,96632,1171,Venn Group Recruitment,CR415403,Revenue Services Mus,Hired Staff,100
http://statistics.data.gov.uk/id/local-authority/12UE,Huntingdonshire District Council,19/01/2012,97309,1089,Venn Group Recruitment,CR415403,Revenue Services Mus,Hired Staff,100
http://statistics.data.gov.uk/id/local-authority/12UE,Huntingdonshire District Council,19/01/2012,97310,1081,Venn Group Recruitment,CR415403,Revenue Services Mus,Hired Staff,100
http://statistics.data.gov.uk/id/local-authority/12UE,Huntingdonshire District Council,12/01/2012,96621,1032,Venn Group Recruitment,CR415403,Revenue Services Mus,Hired Staff,100
http://statistics.data.gov.uk/id/local-authority/12UE,Huntingdonshire District Council,05/01/2012,95200,600,Hbinfo Ltd,CR479354,Revenue Services Mus,Training - Other,136
http://statistics.data.gov.uk/id/local-authority/12UE,Huntingdonshire District Council,19/01/2012,95640,1524,Northgate Information Solutions Uk Ltd,CR028925,Revenue Services Mus,Software,206
http://statistics.data.gov.uk/id/local-authority/12UE,Huntingdonshire District Council,19/01/2012,86602,-9338,Northgate Information Solutions Uk Ltd,CR028925,Revenue Services Mus,Software,206
http://statistics.data.gov.uk/id/local-authority/12UE,Huntingdonshire District Council,12/01/2012,95727,510,Royal Mail,CR027083,Revenue Services Mus,Postage,231
http://statistics.data.gov.uk/id/local-authority/12UE,Huntingdonshire District Council,12/01/2012,95728,232,T N T Post Midlands Ltd,CR479965,Revenue Services Mus,Postage,231
http://statistics.data.gov.uk/id/local-authority/12UE,Huntingdonshire District Council,05/01/2012,95627,741,T N T Post Midlands Ltd,CR479965,Revenue Services Mus,Postage,231
http://statistics.data.gov.uk/id/local-authority/12UE,Huntingdonshire District Council,19/01/2012,96515,577,T N T Post Midlands Ltd,CR479965,Revenue Services Mus,Postage,231
http://statistics.data.gov.uk/id/local-authority/12UE,Huntingdonshire District Council,26/01/2012,528122,12060,Brampton Parish Council,CR477416,S106 Agreements,Human Resources Management,S10
http://statistics.data.gov.uk/id/local-authority/12UE,Huntingdonshire District Council,05/01/2012,91326,1920,Khipu Networks Ltd,CR482348,Software Capital,Training - Other,136
http://statistics.data.gov.uk/id/local-authority/12UE,Huntingdonshire District Council,19/01/2012,91309,17311,Kelway (Uk) Ltd,CR004345,Software Capital,Other I T Hardware,203
http://statistics.data.gov.uk/id/local-authority/12UE,Huntingdonshire District Council,05/01/2012,96347,6248,Khipu Networks Ltd,CR482348,Software Capital,Network Hardware,205
http://statistics.data.gov.uk/id/local-authority/12UE,Huntingdonshire District Council,05/01/2012,92121,1131,Khipu Networks Ltd,CR482348,Software Capital,Network Hardware,205
http://statistics.data.gov.uk/id/local-authority/12UE,Huntingdonshire District Council,19/01/2012,97329,7140,Northgate Information Solutions Uk Ltd,CR028925,Software Capital,Software,206
http://statistics.data.gov.uk/id/local-authority/12UE,Huntingdonshire District Council,19/01/2012,96854,900,Kelway (Uk) Ltd,CR004345,Software Capital,Equipment Maintenance,511
http://statistics.data.gov.uk/id/local-authority/12UE,Huntingdonshire District Council,19/01/2012,86134,4800,Northgate Information Solutions Uk Ltd,CR028925,Software Capital,Equipment Maintenance,511
http://statistics.data.gov.uk/id/local-authority/12UE,Huntingdonshire District Council,26/01/2012,96505,3015,Edrm Systems Ltd,CR416278,Software Capital,Consultants,711
http://statistics.data.gov.uk/id/local-authority/12UE,Huntingdonshire District Council,19/01/2012,96845,3840,Northgate Information Solutions Uk Ltd,CR028925,Software Capital,Consultants,711
http://statistics.data.gov.uk/id/local-authority/12UE,Huntingdonshire District Council,19/01/2012,96846,-7140,Northgate Information Solutions Uk Ltd,CR028925,Software Capital,Consultants,711
http://statistics.data.gov.uk/id/local-authority/12UE,Huntingdonshire District Council,19/01/2012,96748,1232,Staffline Group,CR416827,Street Cleaning,Hired Staff,100
http://statistics.data.gov.uk/id/local-authority/12UE,Huntingdonshire District Council,05/01/2012,96281,1188,Staffline Group,CR416827,Street Cleaning,Hired Staff,100
http://statistics.data.gov.uk/id/local-authority/12UE,Huntingdonshire District Council,12/01/2012,96283,1066,Staffline Group,CR416827,Street Cleaning,Hired Staff,100
http://statistics.data.gov.uk/id/local-authority/12UE,Huntingdonshire District Council,12/01/2012,527376,210,Post Office  Ltd,CR008902,Street Cleaning,Vehicle Licence,609
http://statistics.data.gov.uk/id/local-authority/12UE,Huntingdonshire District Council,05/01/2012,95784,1012,Johnston Engineering Ltd,CR029831,Street Cleaning,Vehicle Parts,625
http://statistics.data.gov.uk/id/local-authority/12UE,Huntingdonshire District Council,12/01/2012,95663,704,Freedom Lubricants Ltd,CR411569,Street Cleaning,Vehicle Oil,626
http://statistics.data.gov.uk/id/local-authority/12UE,Huntingdonshire District Council,26/01/2012,96695,401,Bandvulc Tyres Ltd,CR406810,Street Cleaning,Tyres,630
http://statistics.data.gov.uk/id/local-authority/12UE,Huntingdonshire District Council,05/01/2012,96160,42000,Anglian Water,CR000071,Transportation Capital,Sitework,359
http://statistics.data.gov.uk/id/local-authority/12UE,Huntingdonshire District Council,26/01/2012,96829,2752,J Breheny Contractors Ltd,CR000314,Watercourses,Sitework,359
http://statistics.data.gov.uk/id/local-authority/12UE,Huntingdonshire District Council,19/01/2012,96856,27795,John Henry & Sons,CR031967,Watercourses,Sitework,359
http://statistics.data.gov.uk/id/local-authority/12UE,Huntingdonshire District Council,12/01/2012,95719,8340,Lattenbury Services,CR406847,Watercourses,Sitework,359
